bitfinex/quotes_SOLUSD_20241123
["timestamp","ask_amount","ask_price","bid_price","bid_amount"]
[1732355796398,5.25385695,257.14,257.05,5.25385695]
[1732355796575,23.776884,257.13,257.05,5.25385695]
[1732355798202,23.776884,257.15,257.07,5.25385695]
[1732355801798,23.776884,257.15,257.09,5.25385695]
[1732355802189,1.04176388,257.16,257.09,5.25385695]
[1732355802606,1.04176388,257.16,257.11,5.25385695]
[1732355803103,1.04176388,257.16,257.08,15.1955]
[1732355803305,6.29562083,257.16,257.08,15.1955]
[1732355804410,23.776884,257.15,257.08,15.1955]
[1732355804909,5.25385695,257.14,257.08,15.1955]
[1732355807490,5.25385695,257.12,257.05,20.0]
[1732355809721,5.25385695,257.14,257.05,25.25385695]
[1732355810010,23.776884,257.13,257.05,25.25385695]
[1732355813995,23.776884,257.11,257.05,20.0]
[1732355815816,23.776884,257.11,257.04,20.0]
[1732355816219,23.776884,257.11,257.04,25.98418051]
[1732355816446,23.776884,257.13,257.05,5.25385695]
[1732355818117,23.776884,257.13,257.06,20.0]
[1732355818724,5.25385695,257.14,257.06,20.0]
[1732355820635,6.29562083,257.16,257.07,5.25385695]
[1732355820807,23.776884,257.15,257.08,20.0]
[1732355821208,1.04176388,257.16,257.09,5.25385695]
[1732355828529,1.04176388,257.16,257.11,5.25385695]
[1732355828728,1.04176388,257.16,257.15,5.25385695]
[1732355829320,1.04176388,257.16,257.15,25.25385695]
[1732355830515,1.04176388,257.16,257.15,20.0]
[1732355831843,1.04176388,257.16,257.14,20.0]
[1732355832138,1.04176388,257.16,257.15,25.25385695]
[1732355838031,1.04176388,257.16,257.15,337.25385695]
[1732355840344,1.04176388,257.16,257.15,25.25385695]
[1732355842612,1.04176388,257.16,257.15,20.0]
[1732355843016,5.25385695,257.28,257.15,20.0]
[1732355843338,5.25385695,257.28,257.21,20.0]
[1732355844936,5.25385695,257.26,257.19,20.0]
[1732355845344,5.25385695,257.26,257.18,5.25385695]
[1732355848927,23.776884,257.32,257.18,5.25385695]
[1732355849142,5.25385695,257.27,257.18,5.25385695]
[1732355851137,5.25385695,257.27,257.19,20.0]
[1732355851340,5.25385695,257.27,257.19,25.25385695]
[1732355852055,5.25385695,257.29,257.19,25.25385695]
[1732355855849,23.776884,257.32,257.21,5.25385695]
[1732355856043,5.25385695,257.3,257.21,5.25385695]
[1732355856237,15.489622,257.37,257.23,5.25385695]
[1732355856438,5.25385695,257.37,257.29,5.25385695]
[1732355857660,23.776884,257.36,257.29,5.25385695]
[1732355859458,23.776884,257.36,257.27,5.25385695]
[1732355860558,5.25385695,257.36,257.27,5.25385695]
[1732355861476,16.3209,257.41,257.27,5.25385695]
[1732355861477,5.25385695,257.37,257.27,5.25385695]
[1732355861834,5.25385695,257.39,257.29,5.25385695]
[1732355862039,5.25385695,257.41,257.31,5.25385695]
[1732355863554,23.776884,257.46,257.31,5.25385695]
[1732355863760,5.25385695,257.41,257.31,5.25385695]
[1732355864438,5.25385695,257.41,257.31,317.25385695]
[1732355864768,5.25385695,257.42,257.33,5.25385695]
[1732355864963,5.25385695,257.44,257.35,5.25385695]
[1732355865137,5.25385695,257.44,257.37,5.25385695]
[1732355865337,5.25385695,257.47,257.37,5.25385695]
[1732355865946,5.25385695,257.45,257.35,15.762]
[1732355866345,5.25385695,257.43,257.35,21.01585695]
[1732355868261,5.25385695,257.43,257.35,333.01585695]
[1732355869844,5.25385695,257.43,257.35,21.01585695]
[1732355870168,5.25385695,257.45,257.35,21.01585695]
[1732355870343,5.25385695,257.45,257.37,5.25385695]
[1732355870763,23.776884,257.52,257.39,5.25385695]
[1732355870936,23.776884,257.49,257.41,5.25385695]
[1732355871455,5.25385695,257.48,257.39,5.25385695]
[1732355871960,5.25385695,257.44,257.38,6.565]
[1732355874439,21.0154278,257.53,257.38,6.565]
[1732355874751,5.25385695,257.46,257.38,6.565]
[1732355875263,5.25385695,257.46,257.38,11.81885695]
[1732355879266,5.25385695,257.44,257.38,6.565]
[1732355879466,5.25385695,257.44,257.37,20.0]
[1732355880369,5.25385695,257.46,257.37,20.0]
[1732355883553,21.0154278,257.53,257.37,20.0]
[1732355883554,5.25385695,257.44,257.37,20.0]
[1732355884967,5.25385695,257.42,257.35,15.762]
[1732355886369,5.25385695,257.4,257.35,15.762]
[1732355887666,5.25385695,257.4,257.31,5.25385695]
[1732355887667,5.25385695,257.4,257.32,20.0]
[1732355888876,5.25385695,257.42,257.33,5.25385695]
[1732355889553,23.776884,257.41,257.33,5.25385695]
[1732355890672,23.776884,257.42,257.35,5.25385695]
[1732355890871,23.776884,257.42,257.33,5.25385695]
[1732355891573,5.25385695,257.41,257.33,5.25385695]
[1732355891872,5.25385695,257.39,257.32,20.0]
[1732355892061,5.25385695,257.39,257.31,5.25385695]
[1732355898478,5.25385695,257.39,257.29,22.7423]
[1732355898665,5.25385695,257.36,257.29,16.1773]
[1732355898873,5.25385695,257.34,257.25,5.25385695]
[1732355900677,5.25385695,257.34,257.27,5.25385695]
[1732355902983,5.25385695,257.36,257.27,5.25385695]
[1732355904879,2.5,257.48,257.3,5.25385695]
[1732355905076,5.25385695,257.39,257.3,5.25385695]
[1732355906269,5.25385695,257.41,257.32,5.25385695]
[1732355907978,6.0942,257.49,257.34,5.25385695]
[1732355908284,6.0942,257.49,257.27,21.0154278]
[1732355908285,5.25385695,257.45,257.36,5.25385695]
[1732355908959,15.8489,257.52,257.38,5.25385695]
[1732355909164,5.25385695,257.47,257.38,5.25385695]
[1732355913779,5.25385695,257.43,257.34,5.25385695]
[1732355914006,5.25385695,257.43,257.35,20.0]
[1732355915486,5.25385695,257.41,257.32,6.2665]
[1732355915692,5.25385695,257.39,257.32,6.2665]
[1732355915995,5.25385695,257.37,257.31,15.5855]
[1732355916585,5.25385695,257.37,257.26,12.25068051]
[1732355916586,5.25385695,257.37,257.27,5.25385695]
[1732355916767,5.25385695,257.31,257.25,15.5855]
[1732355918475,5.25385695,257.36,257.27,5.25385695]
[1732355918674,5.25385695,257.36,257.25,15.5855]
[1732355918888,5.25385695,257.36,257.29,5.25385695]
[1732355919777,5.25385695,257.38,257.29,5.25385695]
[1732355921787,5.25385695,257.38,257.29,317.25385695]
[1732355922576,5.25385695,257.36,257.29,5.25385695]
[1732355925400,5.25385695,257.36,257.27,5.25385695]
[1732355925576,5.25385695,257.36,257.28,20.0]
[1732355926574,7.83431619,257.48,257.3,5.25385695]
[1732355926575,5.33431619,257.48,257.3,5.25385695]
[1732355926791,5.25385695,257.43,257.34,5.25385695]
[1732355930399,5.25385695,257.41,257.34,5.25385695]
[1732355932575,5.25385695,257.43,257.34,5.25385695]
[1732355932780,23.776884,257.51,257.36,5.25385695]
[1732355932781,5.25385695,257.45,257.36,5.25385695]
[1732355935892,5.25385695,257.43,257.34,20.40645695]
[1732355936206,23.776884,257.49,257.34,15.1526]
[1732355936529,5.25385695,257.42,257.34,15.1526]
[1732355938679,23.776884,257.51,257.34,15.1526]
[1732355938879,5.25385695,257.43,257.34,15.1526]
[1732355939998,5.25385695,257.41,257.34,15.1526]
[1732355941880,5.25385695,257.43,257.34,20.40645695]
[1732355945895,5.25385695,257.43,257.34,15.1526]
[1732355953110,5.25385695,257.41,257.34,15.1526]
[1732355953408,5.25385695,257.39,257.3,6.2258]
[1732355954397,5.25385695,257.37,257.3,6.2258]
[1732355954891,5.25385695,257.35,257.28,15.5189]
[1732355962091,5.25385695,257.33,257.25,5.25385695]
[1732355962303,5.25385695,257.33,257.24,6.4901]
[1732355962304,5.25385695,257.31,257.24,6.4901]
[1732355962505,5.25385695,257.33,257.25,5.25385695]
[1732355968815,5.25385695,257.35,257.25,5.25385695]
[1732355969015,23.776884,257.42,257.29,5.25385695]
[1732355969192,5.25385695,257.38,257.29,5.25385695]
[1732355972020,5.25385695,257.38,257.29,317.25385695]
[1732355972486,5.25385695,257.38,257.29,5.25385695]
[1732355975003,23.776884,257.42,257.3,15.4207]
[1732355975202,5.25385695,257.37,257.3,15.4207]
[1732355977396,5.25385695,257.35,257.3,15.4207]
[1732355988741,5.25385695,257.33,257.24,27.41675695]
[1732355993737,5.25385695,257.33,257.24,22.1629]
[1732355993937,5.25385695,257.33,257.24,27.41675695]
[1732356000547,5.25385695,257.31,257.24,22.1629]
[1732356000748,5.25385695,257.29,257.24,22.1629]
[1732356001636,23.5154278,257.4,257.24,22.1629]
[1732356001847,5.25385695,257.33,257.25,5.25385695]
[1732356004239,5.25385695,257.33,257.24,15.6728]
[1732356004442,5.25385695,257.33,257.24,20.92665695]
[1732356006446,23.776884,257.42,257.28,5.25385695]
[1732356006645,5.25385695,257.38,257.28,5.25385695]
[1732356008442,5.25385695,257.35,257.27,6.6291]
[1732356010133,5.25385695,257.33,257.27,6.6291]
[1732356010533,5.25385695,257.31,257.24,15.6728]
[1732356015041,5.25385695,257.29,257.24,15.6728]
[1732356017550,5.25385695,257.31,257.24,15.6728]
[1732356020251,43.776884,257.39,257.24,15.6728]
[1732356020558,5.25385695,257.32,257.24,15.6728]
[1732356021249,23.776884,257.39,257.25,5.25385695]
[1732356021564,5.25385695,257.35,257.25,5.25385695]
[1732356022058,5.25385695,257.35,257.26,6.6291]
[1732356024661,2.5,257.44,257.27,16.4661]
[1732356024851,5.25385695,257.34,257.27,16.4661]
[1732356025362,5.25385695,257.32,257.27,16.4661]
[1732356027366,5.25385695,257.3,257.27,16.4661]
[1732356028461,5.25385695,257.32,257.27,16.4661]
[1732356029445,2.5,257.42,257.27,16.4661]
[1732356029644,5.25385695,257.33,257.27,16.4661]
[1732356030641,23.776884,257.42,257.27,16.4661]
[1732356030860,23.776884,257.34,257.27,16.4661]
[1732356031594,23.776884,257.34,257.27,21.71995695]
[1732356032865,5.25385695,257.37,257.27,21.71995695]
[1732356033671,5.25385695,257.37,257.27,328.4661]
[1732356033849,5.25385695,257.33,257.27,16.4661]
[1732356034540,43.776884,257.39,257.27,16.4661]
[1732356034742,23.776884,257.34,257.27,16.4661]
[1732356035266,5.25385695,257.33,257.27,16.4661]
[1732356039373,20.0,257.39,257.27,16.4661]
[1732356039374,5.25385695,257.31,257.27,16.4661]
[1732356041877,23.776884,257.32,257.27,16.4661]
[1732356042183,23.776884,257.34,257.27,16.4661]
[1732356043782,5.25385695,257.33,257.27,16.4661]
[1732356045998,5.25385695,257.29,257.22,20.0]
[1732356046162,5.25385695,257.23,257.18,5.98418051]
[1732356046361,5.25385695,257.23,257.16,5.98418051]
[1732356046573,5.25385695,257.23,257.15,5.98418051]
[1732356046775,5.25385695,257.23,257.14,26.75633746]
[1732356047174,5.25385695,257.21,257.14,21.50248051]
[1732356047367,5.25385695,257.19,257.14,15.5183]
[1732356047569,5.25385695,257.17,257.14,15.5183]
[1732356047767,5.25385695,257.17,257.12,6.1649]
[1732356047962,5.25385695,257.17,257.1,5.98418051]
[1732356048164,5.25385695,257.15,257.09,5.98418051]
[1732356048489,5.25385695,257.15,257.08,20.77215695]
[1732356048490,5.25385695,257.13,257.08,15.5183]
[1732356049691,5.25385695,257.17,257.08,20.77215695]
[1732356050257,5.25385695,257.17,257.1,5.25385695]
[1732356050689,5.25385695,257.19,257.1,5.25385695]
[1732356050868,5.25385695,257.21,257.12,5.25385695]
[1732356051076,5.25385695,257.21,257.14,5.25385695]
[1732356052566,5.25385695,257.23,257.14,5.25385695]
[1732356052981,23.776884,257.22,257.14,5.25385695]
[1732356055069,23.776884,257.29,257.16,5.25385695]
[1732356055269,23.776884,257.24,257.16,5.25385695]
[1732356057165,23.776884,257.17,257.08,15.5183]
[1732356057371,23.776884,257.29,257.11,5.25385695]
[1732356057590,23.776884,257.29,257.08,15.5183]
[1732356057591,23.776884,257.21,257.13,5.25385695]
[1732356058376,5.25385695,257.22,257.13,5.25385695]
[1732356060668,23.776884,257.19,257.09,25.25385695]
[1732356061191,5.25385695,257.14,257.04,5.98418051]
[1732356061384,23.776884,257.11,257.04,5.25385695]
[1732356062574,23.776884,257.11,257.05,20.0]
[1732356063900,23.776884,257.11,257.03,20.0]
[1732356064695,5.25385695,257.1,257.02,15.5183]
[1732356065503,5.25385695,257.08,257.02,15.5183]
[1732356067494,5.25385695,257.04,256.99,1.04176388]
[1732356068190,5.25385695,257.06,256.99,1.04176388]
[1732356069290,23.776884,257.13,257.0,5.25385695]
[1732356069607,23.776884,257.13,257.01,20.0]
[1732356069608,5.25385695,257.08,257.01,20.0]
[1732356070772,15.4095,257.19,257.07,5.25385695]
[1732356070973,5.25385695,257.17,257.09,5.25385695]
[1732356074182,5.25385695,257.17,257.06,16.0263]
[1732356074373,5.25385695,257.17,257.08,5.25385695]
[1732356075208,5.25385695,257.17,257.1,5.25385695]
[1732356075407,15.4095,257.25,257.14,5.25385695]
[1732356075595,5.25385695,257.23,257.14,5.25385695]
[1732356075982,5.25385695,257.23,257.16,5.25385695]
[1732356076403,5.25385695,257.25,257.16,5.25385695]
[1732356078482,15.496125,257.29,257.06,20.67647146]
[1732356078483,5.25385695,257.23,257.06,20.67647146]
[1732356078715,5.25385695,257.23,257.13,5.25385695]
[1732356079699,5.25385695,257.19,257.06,16.0263]
[1732356079897,5.25385695,257.19,257.1,5.25385695]
[1732356080105,5.25385695,257.19,257.06,16.0263]
[1732356080284,5.25385695,257.17,257.08,5.25385695]
[1732356080888,5.25385695,257.17,257.06,16.0263]
[1732356081096,5.25385695,257.15,257.06,21.28015695]
[1732356081503,5.25385695,257.17,257.08,5.25385695]
[1732356082179,5.25385695,257.19,257.1,5.25385695]
[1732356082376,23.776884,257.18,257.1,5.25385695]
[1732356084693,8.22075507,257.18,257.1,8.22075507]
[1732356085004,8.22075507,257.2,257.1,8.22075507]
[1732356085308,8.22075507,257.2,257.1,320.22075507]
[1732356085616,8.22075507,257.2,257.1,8.22075507]
[1732356085985,17.996125,257.29,257.1,8.22075507]
[1732356085986,16.1112,257.35,257.19,20.0]
[1732356086185,8.22075507,257.32,257.23,8.22075507]
[1732356086412,8.22075507,257.34,257.23,8.22075507]
[1732356087111,8.22075507,257.34,257.25,8.22075507]
[1732356087295,15.489119,257.37,257.27,8.22075507]
[1732356087499,8.22075507,257.38,257.27,8.22075507]
[1732356088411,8.22075507,257.4,257.31,8.22075507]
[1732356090209,8.22075507,257.38,257.29,8.22075507]
[1732356090389,23.776884,257.39,257.29,8.22075507]
[1732356090593,8.22075507,257.38,257.29,8.22075507]
[1732356093391,8.22075507,257.34,257.27,8.22075507]
[1732356093609,8.22075507,257.34,257.26,20.0]
[1732356093801,8.22075507,257.34,257.25,8.22075507]
[1732356094320,23.776884,257.39,257.28,8.22075507]
[1732356094524,8.22075507,257.36,257.28,8.22075507]
[1732356096206,8.22075507,257.36,257.26,8.22075507]
[1732356097327,8.22075507,257.34,257.26,8.22075507]
[1732356097492,8.22075507,257.32,257.22,8.22075507]
[1732356097698,8.22075507,257.29,257.23,20.0]
[1732356098099,8.22075507,257.36,257.26,8.22075507]
[1732356098415,23.776884,257.39,257.26,8.22075507]
[1732356098416,8.22075507,257.34,257.26,8.22075507]
[1732356099123,8.22075507,257.34,257.24,8.22075507]
[1732356100204,8.22075507,257.34,257.26,8.22075507]
[1732356100596,8.22075507,257.34,257.24,8.22075507]
[1732356100798,8.22075507,257.32,257.22,8.22075507]
[1732356101093,8.22075507,257.32,257.23,20.0]
[1732356101517,8.22075507,257.34,257.26,8.22075507]
[1732356102818,8.22075507,257.34,257.24,8.22075507]
[1732356104803,8.22075507,257.32,257.19,332.0]
[1732356105119,8.22075507,257.32,257.23,8.22075507]
[1732356106325,8.22075507,257.34,257.23,8.22075507]
[1732356106704,5.25545275,257.34,257.23,5.25545275]
[1732356107100,33.375752,257.44,257.29,5.25545275]
[1732356107101,30.875752,257.44,257.29,5.25545275]
[1732356107300,5.25545275,257.39,257.29,5.25545275]
[1732356108611,15.391,257.44,257.3,8.20787903]
[1732356108925,8.20787903,257.39,257.3,8.20787903]
[1732356109150,8.20787903,257.37,257.29,20.0]
[1732356109803,8.20787903,257.37,257.26,8.20787903]
[1732356110110,8.20787903,257.35,257.27,20.0]
[1732356110512,8.20787903,257.35,257.26,8.20787903]
[1732356111418,8.20787903,257.37,257.28,8.20787903]
[1732356112007,8.20787903,257.39,257.3,8.20787903]
[1732356117223,8.20787903,257.35,257.27,20.0]
[1732356117428,8.20787903,257.33,257.27,20.0]
[1732356117627,8.20787903,257.33,257.26,20.0]
[1732356118233,8.20787903,257.33,257.25,30.71397903]
[1732356118420,8.20787903,257.33,257.25,36.23866345]
[1732356118743,8.20787903,257.35,257.25,36.23866345]
[1732356119438,8.20787903,257.35,257.26,20.0]
[1732356119642,8.20787903,257.33,257.26,20.0]
[1732356121244,8.20787903,257.33,257.25,21.51328442]
[1732356121618,8.20787903,257.33,257.26,20.0]
[1732356122835,8.20787903,257.33,257.25,21.51328442]
[1732356123527,8.20787903,257.31,257.25,5.52468442]
[1732356124032,8.20787903,257.31,257.22,20.0]
[1732356124546,8.20787903,257.31,257.21,8.20787903]
[1732356126655,8.20787903,257.29,257.19,28.86386345]
[1732356126825,8.20787903,257.27,257.19,5.52468442]
[1732356128151,8.20787903,257.25,257.19,5.52468442]
[1732356128454,8.20787903,257.21,257.13,8.20787903]
[1732356128946,8.20787903,257.21,257.11,13.73256345]
[1732356129257,8.20787903,257.19,257.09,8.20787903]
[1732356129551,8.20787903,257.17,257.09,8.20787903]
[1732356130361,8.20787903,257.17,257.14,3.24]
[1732356131235,8.20787903,257.15,257.14,3.24]
[1732356134730,5.26278198,257.15,257.14,3.24]
[1732356134930,29.03966598,257.15,257.14,3.24]
[1732356142662,29.03966598,257.15,257.03,5.26278198]
[1732356142663,23.776884,257.14,257.03,5.26278198]
[1732356142845,5.26278198,257.12,257.03,5.26278198]
[1732356143362,5.26278198,257.13,257.03,5.26278198]
[1732356143553,5.26278198,257.13,257.05,5.26278198]
[1732356144750,5.26278198,257.13,257.02,20.0]
[1732356144951,5.26278198,257.13,257.03,5.26278198]
[1732356145557,23.776884,257.14,257.03,5.26278198]
[1732356145766,5.26278198,257.13,257.03,5.26278198]
[1732356145939,20.0,257.23,257.05,5.26278198]
[1732356146145,5.26278198,257.19,257.1,5.26278198]
[1732356147262,5.26278198,257.17,257.06,5.2178122]
[1732356147441,5.26278198,257.15,257.07,5.26278198]
[1732356147763,5.26278198,257.17,257.09,5.26278198]
[1732356148359,5.26278198,257.19,257.09,5.26278198]
[1732356152945,5.26278198,257.17,257.09,5.26278198]
[1732356153146,5.26278198,257.15,257.06,5.2178122]
[1732356154550,5.26278198,257.15,257.05,5.26278198]
[1732356154873,5.26278198,257.13,257.05,5.26278198]
[1732356155874,5.26278198,257.15,257.05,5.26278198]
[1732356156772,23.776884,257.23,257.06,20.0]
[1732356156969,5.26278198,257.16,257.07,5.26278198]
[1732356157982,5.26278198,257.18,257.09,5.26278198]
[1732356160374,5.26278198,257.19,257.1,22.4849]
[1732356172684,27.929453,257.23,257.1,22.4849]
[1732356173184,5.26278198,257.16,257.1,22.4849]
[1732356173586,5.26278198,257.16,257.1,15.8752]
[1732356174575,5.26278198,257.14,257.05,6.5903]
[1732356176377,5.26278198,257.12,257.05,6.5903]
[1732356179880,20.69801877,257.21,257.05,6.5903]
[1732356179881,5.26278198,257.1,257.05,6.5903]
[1732356180478,23.776884,257.2,256.99,1.04176388]
[1732356180479,23.776884,257.15,256.99,1.04176388]
[1732356180679,5.26278198,257.04,256.99,1.04176388]
[1732356183000,23.776884,257.09,256.99,1.04176388]
[1732356183375,5.26278198,257.01,256.99,1.04176388]
[1732356186997,23.776884,257.0,256.99,1.04176388]
[1732356189379,29.03966598,257.0,256.99,1.04176388]
[1732356190410,23.776884,257.0,256.99,1.04176388]
[1732356190606,29.03966598,257.0,256.99,1.04176388]
[1732356190813,5.42630937,257.07,256.99,1.04176388]
[1732356190987,5.26278198,257.0,256.99,1.04176388]
[1732356191896,21.94931924,257.08,256.99,1.04176388]
[1732356192099,5.26278198,257.0,256.99,1.04176388]
[1732356192692,21.94931924,257.08,256.99,1.04176388]
[1732356193008,5.26278198,257.0,256.99,1.04176388]
[1732356196695,29.03966598,257.0,256.99,1.04176388]
[1732356197325,5.26278198,257.0,256.99,1.04176388]
[1732356198996,21.94931924,257.08,256.99,1.04176388]
[1732356199290,29.03966598,257.0,256.99,1.04176388]
[1732356199496,23.776884,257.0,256.99,1.04176388]
[1732356199816,29.03966598,257.0,256.99,1.04176388]
[1732356201587,23.776884,257.0,256.99,1.04176388]
[1732356201786,40.028784,256.99,256.86,2.9452]
[1732356201987,5.26278198,256.89,256.86,2.9452]
[1732356203019,45.82702546,256.99,256.86,2.9452]
[1732356203210,5.26278198,256.91,256.86,2.9452]
[1732356204795,5.26278198,256.91,256.86,2.4452]
[1732356211005,6.5279,257.02,256.89,5.26278198]
[1732356211202,5.26278198,256.97,256.89,5.26278198]
[1732356211416,6.1024,257.09,256.96,5.26278198]
[1732356211617,5.26278198,257.06,256.96,4.4076597]
[1732356211916,5.26278198,257.02,256.96,4.4076597]
[1732356212118,5.26278198,256.99,256.88,15.4001]
[1732356212421,5.26278198,256.97,256.9,5.26278198]
[1732356213124,23.776884,256.98,256.9,5.26278198]
[1732356215222,15.4001,257.05,256.9,5.26278198]
[1732356215414,5.26278198,256.99,256.9,5.26278198]
[1732356217425,5.26278198,256.99,256.89,5.26278198]
[1732356218806,5.26278198,256.99,256.91,5.26278198]
[1732356221204,5.26278198,256.99,256.89,25.26278198]
[1732356221415,5.26278198,256.97,256.89,25.26278198]
[1732356223408,23.776884,257.0,256.91,5.26278198]
[1732356224127,5.26278198,257.01,256.93,5.26278198]
[1732356224332,15.4001,257.07,256.95,5.26278198]
[1732356224521,5.26278198,257.04,256.95,5.26278198]
[1732356225435,21.610437,257.09,256.97,5.26278198]
[1732356225638,5.26278198,257.06,256.97,5.26278198]
[1732356226042,5.26278198,257.06,256.94,6.3224]
[1732356226043,5.26278198,257.06,256.99,5.26278198]
[1732356226423,4.152569,257.08,256.99,5.26278198]
[1732356226829,9.41535098,257.08,256.99,5.26278198]
[1732356228237,4.152569,257.08,256.99,5.26278198]
[1732356228544,9.41535098,257.08,256.99,5.26278198]
[1732356232740,5.26278198,257.06,256.98,15.1863]
[1732356233035,5.26278198,257.04,256.98,15.1863]
[1732356233236,5.26278198,257.02,256.98,15.1863]
[1732356235737,23.776884,257.01,256.94,6.3224]
[1732356236034,5.26278198,257.0,256.94,6.3224]
[1732356238029,23.776884,257.01,256.94,6.3224]
[1732356238417,4.152569,257.08,256.94,6.3224]
[1732356238616,5.26278198,257.05,256.95,5.26278198]
[1732356238818,5.26278198,257.07,256.99,5.26278198]
[1732356240234,4.152569,257.08,256.99,5.26278198]
[1732356240538,4.152569,257.08,257.01,5.26278198]
[1732356241641,9.41535098,257.08,257.01,5.26278198]
[1732356242021,9.41535098,257.08,256.96,4.4076597]
[1732356242022,4.152569,257.08,257.03,5.26278198]
[1732356242234,4.152569,257.08,257.06,5.26278198]
[1732356242625,4.152569,257.08,257.07,16.4957]
[1732356249836,4.152569,257.08,257.07,41.75848198]
[1732356257263,4.152569,257.08,257.07,36.4957]
[1732356257443,4.152569,257.08,257.07,16.4957]
[1732356257962,4.152569,257.08,257.06,20.0]
[1732356258172,4.152569,257.08,257.05,5.26278198]
[1732356260062,4.152569,257.08,257.07,5.26278198]
[1732356263641,4.152569,257.08,257.07,25.26278198]
[1732356266867,4.152569,257.08,257.07,31.51478198]
[1732356267446,4.152569,257.08,257.07,55.29166598]
[1732356268249,4.152569,257.08,257.07,367.29166598]
[1732356268661,15.495631,257.26,257.09,20.0]
[1732356268662,5.26278198,257.26,257.09,20.0]
[1732356268853,5.26278198,257.26,257.17,5.26278198]
[1732356270668,5.26278198,257.18,257.08,5.26278198]
[1732356271746,5.26278198,257.18,257.09,20.0]
[1732356271951,5.26278198,257.18,257.08,5.26278198]
[1732356272169,5.26278198,257.18,257.09,20.0]
[1732356273371,5.26278198,257.16,257.03,20.0]
[1732356273572,5.26278198,257.16,257.08,20.0]
[1732356274753,23.776884,257.21,257.08,20.0]
[1732356274956,5.26278198,257.17,257.09,5.26278198]
[1732356275975,23.776884,257.16,257.09,5.26278198]
[1732356276549,23.776884,257.16,257.07,5.26278198]
[1732356276754,23.776884,257.16,257.08,20.0]
[1732356278451,23.776884,257.16,257.07,5.26278198]
[1732356278666,23.776884,257.16,257.09,5.26278198]
[1732356279272,23.776884,257.16,257.07,5.26278198]
[1732356282073,23.776884,257.12,257.03,20.0]
[1732356282260,23.776884,257.12,257.05,20.0]
[1732356284781,23.776884,257.14,257.07,20.0]
[1732356286552,23.776884,257.12,257.03,20.0]
[1732356286778,23.776884,257.12,257.05,5.26278198]
[1732356286964,23.776884,257.13,257.05,5.26278198]
[1732356287474,23.776884,257.14,257.05,5.26278198]
[1732356289158,23.776884,257.14,257.07,5.26278198]
[1732356289551,23.776884,257.16,257.07,5.26278198]
[1732356292780,5.26278198,257.2,257.11,5.26278198]
[1732356292949,5.26278198,257.2,257.02,4.4076597]
[1732356293154,5.26278198,257.15,257.06,5.26278198]
[1732356293467,5.26278198,257.15,257.01,20.0]
[1732356293468,5.26278198,257.13,257.0,20.0]
[1732356293655,5.26278198,257.13,257.04,5.26278198]
[1732356294171,23.776884,257.12,257.04,5.26278198]
[1732356295263,40.014184,257.12,256.97,5.98418051]
[1732356295563,23.776884,257.06,256.97,5.26278198]
[1732356296571,23.776884,257.06,256.99,5.26278198]
[1732356296806,23.776884,257.08,256.99,5.26278198]
[1732356297655,23.776884,257.1,257.01,5.26278198]
[1732356297856,23.776884,257.1,257.03,5.26278198]
[1732356298263,23.776884,257.12,257.03,5.26278198]
[1732356299458,23.776884,257.12,257.05,5.26278198]
[1732356299664,23.776884,257.11,256.99,20.0]
[1732356299871,23.776884,257.11,257.03,5.26278198]
[1732356301867,23.776884,257.11,256.98,15.8748]
[1732356301868,5.26278198,257.07,256.9,15.8748]
[1732356302071,23.776884,257.06,256.97,5.26278198]
[1732356302857,23.776884,257.06,256.99,5.26278198]
[1732356303063,23.776884,257.1,257.01,5.26278198]
[1732356303284,23.776884,257.1,257.04,5.26278198]
[1732356303984,5.26278198,257.06,256.98,5.26278198]
[1732356304187,23.776884,257.07,256.98,5.26278198]
[1732356304494,23.776884,257.09,257.02,5.26278198]
[1732356305288,23.776884,257.09,257.04,5.26278198]
[1732356305476,23.776884,257.11,257.04,5.26278198]
[1732356305987,5.26278198,257.16,257.07,5.26278198]
[1732356306160,5.26278198,257.12,257.02,20.0]
[1732356306487,5.26278198,257.12,257.02,25.26278198]
[1732356307079,5.26278198,257.1,257.02,25.26278198]
[1732356308379,23.776884,257.05,256.95,5.26278198]
[1732356310586,5.26278198,257.01,256.92,20.0]
[1732356310779,8.23212153,257.0,256.92,20.0]
[1732356310976,23.776884,256.99,256.92,20.0]
[1732356311494,23.776884,257.01,256.94,20.0]
[1732356312278,23.776884,257.01,256.93,8.23212153]
[1732356314569,23.776884,257.01,256.95,8.23212153]
[1732356314995,23.776884,257.03,256.95,8.23212153]
[1732356315301,8.23212153,257.06,256.97,8.23212153]